[Event "Kvibergspelen 2018"]
[Site "Prioritet Serneke Arena, Krutvagen 2, Gothenburg, Sweden"]
[Date "2018.04.20"]
[Round "1.10"]
[White "Kenani, Dariush"]
[Black "Bellon Lopez, Juan"]
[Result "1/2-1/2"]
[TimeControl "15 minutes + 5 seconds per move from move one (Round 1 - 4) / 90 minutes + 30 seconds per move from move one (Round 5 - 8)"]
[BlackTitle "GM"]
[WhiteFideId "1707973"]
[BlackFideId "2200031"]
[WhiteElo "1898"]
[BlackElo "2352"]

1. e4 {[%clk 00:15:07]} {[%emt 00:00:03]} c5 {[%clk 00:15:14]} 2. Nf3 {[%clk
00:15:01]} {[%emt 00:00:11]} e6 {[%clk 00:15:18]} {[%emt 00:00:02]} 3. d4
{[%clk 00:15:01]} {[%emt 00:00:04]} cxd4 {[%clk 00:15:22]} {[%emt 00:00:02]} 4.
c3 {[%clk 00:14:42]} {[%emt 00:00:24]} d3 {[%clk 00:15:19]} {[%emt 00:00:08]} 5.
Bxd3 {[%clk 00:14:45]} {[%emt 00:00:02]} Nc6 {[%clk 00:15:22]} {[%emt
00:00:02]} 6. O-O {[%clk 00:14:46]} {[%emt 00:00:03]} d6 {[%clk 00:15:21]}
{[%emt 00:00:06]} 7. Qc2 {[%clk 00:14:42]} {[%emt 00:00:09]} g6 {[%clk
00:15:22]} {[%emt 00:00:05]} 8. Bf4 {[%clk 00:14:42]} {[%emt 00:00:04]} Bg7
{[%clk 00:15:16]} {[%emt 00:00:11]} 9. Nbd2 {[%clk 00:14:42]} {[%emt 00:00:04]}
e5 {[%clk 00:14:53]} {[%emt 00:00:28]} 10. Bg3 {[%clk 00:14:21]} {[%emt
00:00:26]} Nf6 {[%clk 00:14:36]} {[%emt 00:00:22]} 11. h3 {[%clk 00:14:23]}
{[%emt 00:00:03]} O-O {[%clk 00:14:37]} {[%emt 00:00:05]} 12. Rad1 {[%clk
00:14:24]} {[%emt 00:00:03]} Qc7 {[%clk 00:14:37]} {[%emt 00:00:06]} 13. Rfe1
{[%clk 00:13:15]} {[%emt 00:01:13]} a6 {[%clk 00:14:23]} {[%emt 00:00:20]} 14.
Nf1 {[%clk 00:12:59]} {[%emt 00:00:20]} Be6 {[%clk 00:14:23]} {[%emt 00:00:05]}
15. Qb1 {[%clk 00:12:56]} {[%emt 00:00:09]} Nh5 {[%clk 00:14:09]} {[%emt
00:00:19]} 16. Bh2 {[%clk 00:11:46]} {[%emt 00:01:15]} Nf4 {[%clk 00:14:11]}
{[%emt 00:00:04]} 17. Bxf4 {[%clk 00:11:26]} {[%emt 00:00:24]} exf4 {[%clk
00:14:14]} {[%emt 00:00:02]} 18. Bc2 {[%clk 00:11:11]} {[%emt 00:00:21]} Rad8
{[%clk 00:14:00]} {[%emt 00:00:18]} 19. Rd2 {[%clk 00:11:13]} {[%emt 00:00:03]}
d5 {[%clk 00:13:49]} {[%emt 00:00:16]} 20. Red1 {[%clk 00:11:07]} {[%emt
00:00:10]} dxe4 {[%clk 00:13:41]} {[%emt 00:00:14]} 21. Bxe4 {[%clk 00:11:09]}
{[%emt 00:00:02]} h6 {[%clk 00:13:17]} {[%emt 00:00:29]} 22. Bd5 {[%clk
00:09:56]} {[%emt 00:01:18]} Bf5 {[%clk 00:12:36]} {[%emt 00:00:46]} 23. Qc1
{[%clk 00:09:57]} {[%emt 00:00:03]} g5 {[%clk 00:12:15]} {[%emt 00:00:27]} 24.
Bxc6 {[%clk 00:09:41]} {[%emt 00:00:21]} Rxd2 {[%clk 00:11:41]} {[%emt
00:00:39]} 25. Rxd2 {[%clk 00:09:36]} {[%emt 00:00:10]} Qxc6 {[%clk 00:11:23]}
{[%emt 00:00:23]} 26. Nd4 {[%clk 00:09:37]} {[%emt 00:00:03]} Qg6 {[%clk
00:10:42]} {[%emt 00:00:46]} 27. Nxf5 {[%clk 00:09:30]} {[%emt 00:00:12]} Qxf5
{[%clk 00:10:46]} 28. Qd1 {[%clk 00:09:30]} {[%emt 00:00:05]} Qe6 {[%clk
00:09:52]} {[%emt 00:00:59]} 29. Qb3 {[%clk 00:08:53]} {[%emt 00:00:42]} Qxb3
{[%clk 00:09:33]} {[%emt 00:00:24]} 30. axb3 {[%clk 00:08:56]} {[%emt
00:00:01]} Re8 {[%clk 00:09:21]} {[%emt 00:00:17]} 31. f3 {[%clk 00:08:43]}
{[%emt 00:00:18]} Re1 {[%clk 00:09:18]} {[%emt 00:00:08]} 32. Kf2 {[%clk
00:08:43]} {[%emt 00:00:05]} Rb1 {[%clk 00:09:18]} {[%emt 00:00:05]} 33. Rc2
{[%clk 00:08:06]} {[%emt 00:00:42]} a5 {[%clk 00:08:19]} {[%emt 00:01:04]} 34.
Nd2 {[%clk 00:07:57]} {[%emt 00:00:13]} Ra1 {[%clk 00:08:12]} {[%emt 00:00:11]}
35. Nc4 {[%clk 00:07:17]} {[%emt 00:00:48]} a4 {[%clk 00:08:06]} {[%emt
00:00:11]} 36. b4 {[%clk 00:07:12]} {[%emt 00:00:09]} Kf8 {[%clk 00:07:00]}
{[%emt 00:01:10]} 37. Na3 {[%clk 00:06:51]} {[%emt 00:00:27]} Bf6 {[%clk
00:06:34]} {[%emt 00:00:31]} 38. Ke2 {[%clk 00:06:52]} {[%emt 00:00:03]} h5
{[%clk 00:06:24]} {[%emt 00:00:15]} 39. Kd3 {[%emt 00:00:44]} Re1 {[%clk
00:06:25]} {[%emt 00:00:01]} 40. Kc4 {[%clk 00:06:17]} {[%emt 00:00:04]} Re5
{[%clk 00:06:12]} {[%emt 00:00:18]} 41. Rd2 {[%clk 00:06:10]} {[%emt 00:00:12]}
Be7 {[%clk 00:06:15]} {[%emt 00:00:02]} 42. Nb5 {[%clk 00:05:43]} {[%emt
00:00:32]} g4 {[%clk 00:05:05]} {[%emt 00:01:15]} 43. hxg4 {[%clk 00:05:24]}
{[%emt 00:00:23]} hxg4 {[%clk 00:05:09]} {[%emt 00:00:01]} 44. Nd4 {[%clk
00:05:18]} {[%emt 00:00:11]} g3 {[%clk 00:04:58]} {[%emt 00:00:15]} 45. Re2
{[%clk 00:05:07]} {[%emt 00:00:16]} b5+ {[%clk 00:04:46]} {[%emt 00:00:18]} 46.
Kd3 {[%clk 00:05:11]} {[%emt 00:00:01]} Rh5 {[%clk 00:04:34]} {[%emt 00:00:17]}
47. Ke4 {[%clk 00:04:39]} {[%emt 00:00:37]} Bd6 {[%clk 00:04:26]} {[%emt
00:00:14]} 48. Nf5 {[%clk 00:04:37]} {[%emt 00:00:06]} Bc7 {[%clk 00:04:19]}
{[%emt 00:00:11]} 49. Rd2 {[%clk 00:04:38]} {[%emt 00:00:05]} Rh1 {[%clk
00:03:00]} {[%emt 00:01:25]} 50. Nd4 {[%clk 00:03:59]} {[%emt 00:00:44]} Rh5
{[%clk 00:02:51]} {[%emt 00:00:14]} 51. Nf5 {[%clk 00:04:03]} {[%emt 00:00:01]}
Rh1 {[%clk 00:02:55]} 52. Rd7 {[%emt 00:00:10]} Re1+ 1/2-1/2

[Event "Kvibergspelen 2018"]
[Site "Prioritet Serneke Arena, Krutvagen 2, Gothenburg, Sweden"]
[Date "2018.04.20"]
[Round "1.11"]
[White "Seo, Jung Min"]
[Black "Wernberg, Hugo"]
[Result "1-0"]
[TimeControl "15 minutes + 5 seconds per move from move one (Round 1 - 4) / 90 minutes + 30 seconds per move from move one (Round 5 - 8)"]
[WhiteTitle "FM"]
[WhiteFideId "1734687"]
[BlackFideId "1737511"]
[WhiteElo "2349"]
[BlackElo "1898"]

1. d4 {[%clk 00:15:08]} d5 {[%clk 00:15:09]} {[%emt 00:00:02]} 2. c4 {[%clk
00:15:12]} {[%emt 00:00:01]} e6 {[%clk 00:15:10]} {[%emt 00:00:04]} 3. Nc3
{[%clk 00:15:17]} Nf6 {[%clk 00:15:13]} {[%emt 00:00:03]} 4. Bg5 {[%clk
00:15:20]} {[%emt 00:00:01]} Be7 {[%clk 00:15:09]} {[%emt 00:00:09]} 5. e3
{[%clk 00:15:21]} {[%emt 00:00:04]} O-O {[%clk 00:15:06]} {[%emt 00:00:07]} 6.
Nf3 {[%clk 00:15:24]} {[%emt 00:00:03]} c6 {[%clk 00:15:00]} {[%emt 00:00:12]}
7. Bd3 {[%clk 00:15:18]} {[%emt 00:00:10]} h6 {[%clk 00:15:00]} {[%emt
00:00:05]} 8. Bxf6 {[%clk 00:15:15]} {[%emt 00:00:09]} Bxf6 {[%clk 00:14:58]}
{[%emt 00:00:06]} 9. O-O {[%clk 00:15:18]} {[%emt 00:00:02]} Nd7 {[%clk
00:14:40]} {[%emt 00:00:23]} 10. Qe2 {[%clk 00:15:18]} {[%emt 00:00:06]} Re8
{[%clk 00:14:07]} {[%emt 00:00:38]} 11. Rad1 {[%clk 00:15:08]} {[%emt
00:00:14]} b6 {[%clk 00:13:06]} {[%emt 00:01:06]} 12. e4 {[%clk 00:15:11]}
{[%emt 00:00:01]} dxc4 {[%clk 00:11:45]} {[%emt 00:01:27]} 13. Bxc4 {[%clk
00:15:15]} {[%emt 00:00:02]} Bb7 {[%clk 00:11:32]} {[%emt 00:00:18]} 14. Rfe1
{[%clk 00:14:58]} {[%emt 00:00:21]} b5 {[%clk 00:11:01]} {[%emt 00:00:37]} 15.
Bd3 {[%clk 00:14:28]} {[%emt 00:00:34]} Nb6 {[%clk 00:10:27]} {[%emt 00:00:39]}
16. e5 {[%clk 00:13:50]} {[%emt 00:00:43]} Be7 {[%clk 00:09:45]} {[%emt
00:00:47]} 17. Qe4 {[%clk 00:13:51]} {[%emt 00:00:03]} g6 {[%clk 00:09:13]}
{[%emt 00:00:39]} 18. Qg4 {[%clk 00:13:29]} {[%emt 00:00:26]} Kh7 {[%clk
00:07:32]} {[%emt 00:01:47]} 19. h4 {[%clk 00:13:26]} {[%emt 00:00:07]} Rg8
{[%clk 00:04:43]} {[%emt 00:02:54]} 20. h5 {[%clk 00:13:23]} {[%emt 00:00:08]}
Bc8 {[%clk 00:03:32]} {[%emt 00:01:17]} 21. g3 {[%clk 00:12:30]} {[%emt
00:00:58]} Nc4 {[%clk 00:02:02]} {[%emt 00:01:35]} 22. Re2 {[%clk 00:11:54]}
{[%emt 00:00:42]} a6 {[%clk 00:00:38]} {[%emt 00:01:29]} 23. Kg2 {[%clk
00:11:52]} {[%emt 00:00:06]} Qd7 {[%clk 00:00:16]} {[%emt 00:00:26]} 24. Rh1
{[%clk 00:11:45]} {[%emt 00:00:12]} Bf8 {[%clk 00:00:06]} {[%emt 00:00:16]} 25.
Ne4 {[%clk 00:11:34]} {[%emt 00:00:16]} Be7 {[%clk 00:00:08]} {[%emt 00:00:03]}
26. hxg6 {[%clk 00:10:57]} {[%emt 00:00:42]} fxg6 {[%clk 00:00:09]} {[%emt
00:00:04]} 27. Nf6 {[%clk 00:10:46]} {[%emt 00:00:16]} Bxf6 {[%clk 00:00:12]}
{[%emt 00:00:02]} 28. exf6 {[%clk 00:10:49]} {[%emt 00:00:02]} Qd5 {[%clk
00:00:06]} {[%emt 00:00:11]} 29. Bxc4 {[%clk 00:10:28]} {[%emt 00:00:26]} bxc4
{[%clk 00:00:10]} {[%emt 00:00:01]} 30. Re5 {[%clk 00:10:30]} {[%emt 00:00:04]}
Qd7 {[%emt 00:00:17]} 1-0

[Event "Kvibergspelen 2018"]
[Site "Prioritet Serneke Arena, Krutvagen 2, Gothenburg, Sweden"]
[Date "2018.04.20"]
[Round "1.12"]
[White "Westerlund, Ola"]
[Black "Al Hadarani, Hatim"]
[Result "0-1"]
[TimeControl "15 minutes + 5 seconds per move from move one (Round 1 - 4) / 90 minutes + 30 seconds per move from move one (Round 5 - 8)"]
[BlackTitle "FM"]
[WhiteFideId "1712101"]
[BlackFideId "9400273"]
[WhiteElo "1891"]
[BlackElo "2334"]

1. d4 {[%clk 00:15:07]} {[%emt 00:00:02]} Nf6 {[%clk 00:15:07]} {[%emt
00:00:03]} 2. c4 {[%clk 00:15:11]} {[%emt 00:00:02]} c5 {[%clk 00:15:08]}
{[%emt 00:00:03]} 3. d5 {[%clk 00:15:14]} {[%emt 00:00:02]} e5 {[%clk
00:15:12]} {[%emt 00:00:02]} 4. Nc3 {[%clk 00:15:09]} {[%emt 00:00:10]} d6
{[%clk 00:15:16]} 5. e4 {[%clk 00:15:00]} {[%emt 00:00:14]} Be7 {[%clk
00:15:20]} {[%emt 00:00:01]} 6. g3 {[%clk 00:14:41]} {[%emt 00:00:25]} h5
{[%clk 00:15:13]} {[%emt 00:00:11]} 7. h4 {[%clk 00:10:10]} {[%emt 00:04:36]}
Na6 {[%clk 00:15:03]} {[%emt 00:00:16]} 8. Qc2 {[%clk 00:08:45]} {[%emt
00:01:30]} Bd7 {[%clk 00:13:55]} {[%emt 00:01:13]} 9. Bh3 {[%clk 00:08:19]}
{[%emt 00:00:30]} Nc7 {[%clk 00:13:23]} {[%emt 00:00:36]} 10. a4 {[%clk
00:06:51]} {[%emt 00:01:34]} Rb8 {[%clk 00:13:01]} {[%emt 00:00:27]} 11. Bd2
{[%clk 00:05:28]} {[%emt 00:01:27]} b6 {[%clk 00:12:15]} {[%emt 00:00:50]} 12.
Nb5 {[%clk 00:04:04]} {[%emt 00:01:29]} Rb7 {[%clk 00:08:58]} {[%emt 00:03:22]}
13. f3 {[%clk 00:02:14]} {[%emt 00:01:56]} a6 {[%clk 00:08:53]} {[%emt
00:00:09]} 14. Nxc7+ {[%clk 00:01:54]} {[%emt 00:00:25]} Qxc7 {[%clk 00:08:46]}
{[%emt 00:00:12]} 15. Bxd7+ {[%clk 00:01:57]} {[%emt 00:00:02]} Qxd7 {[%clk
00:08:34]} {[%emt 00:00:17]} 16. Ne2 {[%clk 00:01:43]} {[%emt 00:00:19]} O-O
{[%clk 00:07:08]} {[%emt 00:01:30]} 17. Kf2 {[%clk 00:01:20]} {[%emt 00:00:28]}
b5 {[%clk 00:07:03]} {[%emt 00:00:10]} 18. axb5 {[%clk 00:01:14]} {[%emt
00:00:12]} axb5 {[%clk 00:07:06]} {[%emt 00:00:02]} 19. b3 {[%clk 00:01:13]}
{[%emt 00:00:06]} Rfb8 {[%clk 00:07:05]} {[%emt 00:00:06]} 20. Ra2 {[%clk
00:00:53]} {[%emt 00:00:26]} Ne8 {[%clk 00:05:10]} {[%emt 00:01:59]} 21. Kg2
{[%clk 00:00:54]} {[%emt 00:00:04]} Nc7 {[%clk 00:03:08]} {[%emt 00:02:07]} 22.
Rha1 {[%clk 00:00:38]} {[%emt 00:00:21]} Rf8 {[%clk 00:02:41]} {[%emt
00:00:32]} 23. Nc3 {[%clk 00:00:30]} {[%emt 00:00:13]} b4 {[%clk 00:00:59]}
{[%emt 00:01:48]} 24. Nd1 {[%clk 00:00:33]} g6 {[%clk 00:01:01]} {[%emt
00:00:03]} 25. Ne3 {[%clk 00:00:36]} {[%emt 00:00:03]} Ne8 {[%clk 00:01:04]}
{[%emt 00:00:02]} 26. Ra8 {[%clk 00:00:24]} {[%emt 00:00:17]} Ng7 {[%clk
00:00:36]} {[%emt 00:00:34]} 27. Qa2 {[%clk 00:00:16]} {[%emt 00:00:12]} f5
{[%clk 00:00:34]} {[%emt 00:00:06]} 28. Rxf8+ {[%clk 00:00:18]} {[%emt
00:00:03]} Bxf8 {[%clk 00:00:36]} {[%emt 00:00:03]} 29. Qa4 {[%clk 00:00:22]}
Qe7 {[%clk 00:00:37]} {[%emt 00:00:04]} 30. Qc6 {[%clk 00:00:23]} {[%emt
00:00:04]} f4 {[%clk 00:00:40]} {[%emt 00:00:02]} 31. Nf1 {[%clk 00:00:24]}
{[%emt 00:00:04]} Rc7 {[%clk 00:00:33]} {[%emt 00:00:12]} 32. Qb6 {[%clk
00:00:24]} {[%emt 00:00:05]} Rb7 {[%clk 00:00:37]} {[%emt 00:00:01]} 33. Qc6
{[%clk 00:00:28]} Ra7 {[%clk 00:00:23]} {[%emt 00:00:18]} 34. Rxa7 {[%clk
00:00:27]} {[%emt 00:00:06]} Qxa7 {[%clk 00:00:27]} {[%emt 00:00:02]} 35. Qd7
{[%clk 00:00:31]} {[%emt 00:00:02]} 0-1

[Event "Kvibergspelen 2018"]
[Site "Prioritet Serneke Arena, Krutvagen 2, Gothenburg, Sweden"]
[Date "2018.04.20"]
[Round "1.13"]
[White "Storme, Isak"]
[Black "Stein Holst, Peter"]
[Result "1/2-1/2"]
[TimeControl "15 minutes + 5 seconds per move from move one (Round 1 - 4) / 90 minutes + 30 seconds per move from move one (Round 5 - 8)"]
[WhiteTitle "CM"]
[WhiteFideId "1728113"]
[BlackFideId "1408089"]
[WhiteElo "2323"]
[BlackElo "1888"]

1. e4 {[%clk 00:15:07]} {[%emt 00:00:02]} c5 {[%clk 00:15:09]} {[%emt
00:00:02]} 2. Nf3 {[%clk 00:15:09]} {[%emt 00:00:03]} g6 {[%clk 00:15:13]}
{[%emt 00:00:02]} 3. d4 {[%clk 00:14:59]} {[%emt 00:00:14]} cxd4 {[%clk
00:15:16]} {[%emt 00:00:03]} 4. Nxd4 {[%clk 00:14:59]} {[%emt 00:00:05]} Nc6
{[%clk 00:15:18]} {[%emt 00:00:02]} 5. c4 {[%clk 00:14:43]} {[%emt 00:00:21]}
Bg7 {[%clk 00:15:21]} {[%emt 00:00:03]} 6. Be3 {[%clk 00:14:41]} {[%emt
00:00:06]} Nf6 {[%clk 00:15:22]} {[%emt 00:00:05]} 7. Nc3 {[%clk 00:14:43]}
{[%emt 00:00:03]} O-O {[%clk 00:13:34]} {[%emt 00:01:54]} 8. Be2 {[%clk
00:14:38]} {[%emt 00:00:09]} d6 {[%clk 00:12:29]} {[%emt 00:01:11]} 9. O-O
{[%clk 00:14:33]} {[%emt 00:00:10]} Nxd4 {[%clk 00:12:05]} {[%emt 00:00:30]} 10.
Bxd4 {[%clk 00:14:33]} {[%emt 00:00:04]} Bd7 {[%clk 00:11:06]} {[%emt
00:01:04]} 11. Bd3 {[%clk 00:12:54]} {[%emt 00:01:43]} Ng4 {[%clk 00:08:54]}
{[%emt 00:02:18]} 12. Bxg7 {[%clk 00:11:35]} {[%emt 00:01:25]} Kxg7 {[%clk
00:08:57]} {[%emt 00:00:02]} 13. Qe2 {[%clk 00:11:03]} {[%emt 00:00:36]} Ne5
{[%clk 00:08:06]} {[%emt 00:00:56]} 14. Bc2 {[%clk 00:09:52]} {[%emt 00:01:15]}
Rc8 {[%clk 00:07:47]} {[%emt 00:00:24]} 15. b3 {[%clk 00:09:32]} {[%emt
00:00:25]} Nc6 {[%clk 00:06:28]} {[%emt 00:01:25]} 16. Qe3 {[%clk 00:09:22]}
{[%emt 00:00:14]} a6 {[%clk 00:05:29]} {[%emt 00:01:05]} 17. Rad1 {[%clk
00:07:57]} {[%emt 00:01:30]} Be6 {[%clk 00:05:22]} {[%emt 00:00:11]} 18. f4
{[%clk 00:07:47]} {[%emt 00:00:15]} Qa5 {[%clk 00:05:06]} {[%emt 00:00:21]} 19.
f5 {[%clk 00:07:22]} {[%emt 00:00:30]} Bd7 {[%clk 00:05:09]} {[%emt 00:00:03]}
20. f6+ {[%clk 00:04:45]} {[%emt 00:02:42]} exf6 {[%clk 00:05:11]} {[%emt
00:00:03]} 21. Nd5 {[%clk 00:04:14]} {[%emt 00:00:36]} Bg4 {[%clk 00:04:31]}
{[%emt 00:00:44]} 22. Rd2 {[%clk 00:03:31]} {[%emt 00:00:48]} Qc5 {[%clk
00:03:45]} {[%emt 00:00:52]} 23. Qxc5 {[%clk 00:02:42]} {[%emt 00:00:54]} dxc5
{[%clk 00:03:48]} {[%emt 00:00:02]} 24. Nxf6 {[%clk 00:02:32]} {[%emt
00:00:15]} Be6 {[%clk 00:03:43]} {[%emt 00:00:11]} 25. Nd7 {[%clk 00:01:36]}
{[%emt 00:01:00]} Rfd8 {[%clk 00:03:21]} {[%emt 00:00:27]} 26. Rfd1 {[%clk
00:01:07]} {[%emt 00:00:34]} Bg4 {[%clk 00:03:10]} {[%emt 00:00:16]} 27. Nxc5
{[%clk 00:00:59]} {[%emt 00:00:13]} Bxd1 {[%clk 00:03:13]} {[%emt 00:00:03]} 28.
Rxd1 {[%clk 00:01:02]} {[%emt 00:00:02]} Rxd1+ {[%clk 00:02:58]} {[%emt
00:00:20]} 29. Bxd1 {[%clk 00:01:05]} {[%emt 00:00:02]} Rc7 {[%clk 00:00:50]}
{[%emt 00:02:13]} 30. Na4 {[%clk 00:00:23]} {[%emt 00:00:46]} Rd7 {[%clk
00:00:43]} {[%emt 00:00:13]} 31. Bf3 {[%clk 00:00:12]} {[%emt 00:00:15]} Rd2
{[%clk 00:00:29]} {[%emt 00:00:19]} 32. Nc5 {[%clk 00:00:11]} {[%emt 00:00:06]}
Rxa2 {[%clk 00:00:09]} {[%emt 00:00:27]} 33. Nxb7 {[%clk 00:00:12]} {[%emt
00:00:03]} Ne5 {[%clk 00:00:09]} {[%emt 00:00:05]} 34. Nc5 {[%clk 00:00:12]}
{[%emt 00:00:05]} Ra5 {[%clk 00:00:09]} {[%emt 00:00:05]} 35. Nb7 {[%clk
00:00:09]} {[%emt 00:00:08]} Ra3 {[%clk 00:00:12]} {[%emt 00:00:02]} 36. Nc5
{[%clk 00:00:12]} {[%emt 00:00:02]} Ra5 {[%clk 00:00:16]} {[%emt 00:00:01]} 37.
Nb7 {[%clk 00:00:16]} {[%emt 00:00:01]} Ra3 {[%clk 00:00:20]} {[%emt 00:00:02]}
38. Nc5 {[%clk 00:00:16]} {[%emt 00:00:04]} 1/2-1/2

[Event "Kvibergspelen 2018"]
[Site "Prioritet Serneke Arena, Krutvagen 2, Gothenburg, Sweden"]
[Date "2018.04.20"]
[Round "1.14"]
[White "Olofsson, Hans-Erik"]
[Black "Pantzar, Milton"]
[Result "0-1"]
[TimeControl "15 minutes + 5 seconds per move from move one (Round 1 - 4) / 90 minutes + 30 seconds per move from move one (Round 5 - 8)"]
[BlackTitle "FM"]
[WhiteFideId "1716212"]
[BlackFideId "1721003"]
[WhiteElo "1885"]
[BlackElo "2295"]

1. e4 {[%emt 00:22:18]} b6 {[%emt 00:00:09]} 2. d4 {[%emt 00:00:03]} Bb7 {[%emt
00:00:02]} 3. c4 {[%emt 00:00:14]} Bxe4 {[%emt 00:00:23]} 4. Nc3 Bg6 {[%emt
00:00:43]} 5. Nf3 {[%emt 00:00:34]} e6 {[%emt 00:00:25]} 6. Be2 {[%emt
00:00:21]} Nf6 {[%emt 00:00:25]} 7. O-O {[%emt 00:00:06]} d6 {[%emt 00:00:50]}
8. Re1 {[%emt 00:00:09]} Be7 {[%emt 00:00:08]} 9. a3 {[%emt 00:00:40]} O-O
{[%emt 00:00:07]} 10. b4 {[%emt 00:00:30]} c5 {[%emt 00:01:16]} 11. d5 {[%emt
00:01:33]} e5 {[%emt 00:00:21]} 12. Nh4 {[%emt 00:00:42]} Ne4 {[%emt 00:00:43]}
13. Nxe4 {[%emt 00:00:19]} Bxh4 {[%emt 00:01:00]} 14. Ng3 {[%emt 00:00:40]} Nd7
{[%emt 00:00:44]} 15. Bd3 {[%emt 00:01:02]} f5 {[%emt 00:00:22]} 16. Bc2 {[%emt
00:00:52]} Rc8 {[%emt 00:00:13]} 17. b5 {[%emt 00:00:11]} e4 {[%emt 00:01:19]}
18. Bb2 {[%emt 00:00:16]} Bf6 {[%emt 00:00:07]} 19. Qb1 {[%emt 00:00:38]} Bxb2
{[%emt 00:00:23]} 20. Qxb2 {[%emt 00:00:01]} Ne5 {[%emt 00:00:02]} 21. Qb3
{[%emt 00:00:33]} Qh4 {[%emt 00:00:04]} 22. Ra2 {[%emt 00:01:16]} Rce8 {[%emt
00:00:18]} 23. Bb1 {[%emt 00:01:06]} Ng4 {[%emt 00:00:49]} 24. h3 {[%emt
00:00:37]} e3 {[%emt 00:00:13]} 25. fxe3 {[%emt 00:03:33]} Qxg3 {[%emt
00:00:04]} 0-1

[Event "Kvibergspelen 2018"]
[Site "Prioritet Serneke Arena, Krutvagen 2, Gothenburg, Sweden"]
[Date "2018.04.20"]
[Round "1.15"]
[White "Degerfeldt, Sven"]
[Black "Sorensen, Hampus"]
[Result "0-1"]
[TimeControl "15 minutes + 5 seconds per move from move one (Round 1 - 4) / 90 minutes + 30 seconds per move from move one (Round 5 - 8)"]
[WhiteFideId "1717430"]
[BlackFideId "8703884"]
[WhiteElo "1881"]
[BlackElo "2243"]

1. d4 {[%clk 00:15:06]} {[%emt 00:00:03]} d5 {[%clk 00:15:08]} {[%emt
00:00:03]} 2. Nf3 {[%clk 00:15:09]} {[%emt 00:00:01]} Nf6 {[%clk 00:15:11]}
{[%emt 00:00:03]} 3. c4 {[%clk 00:15:14]} {[%emt 00:00:01]} c6 {[%clk
00:15:14]} {[%emt 00:00:02]} 4. e3 {[%clk 00:15:17]} {[%emt 00:00:01]} e6
{[%clk 00:15:16]} {[%emt 00:00:03]} 5. a3 {[%clk 00:14:42]} {[%emt 00:00:39]}
Nbd7 {[%clk 00:14:53]} {[%emt 00:00:28]} 6. Nc3 {[%clk 00:14:35]} {[%emt
00:00:12]} Bd6 {[%clk 00:14:48]} {[%emt 00:00:10]} 7. b3 {[%clk 00:14:07]}
{[%emt 00:00:34]} O-O {[%clk 00:14:41]} {[%emt 00:00:12]} 8. Bb2 {[%clk
00:14:07]} {[%emt 00:00:05]} b6 {[%clk 00:13:51]} {[%emt 00:00:55]} 9. Bd3
{[%clk 00:13:30]} {[%emt 00:00:41]} Bb7 {[%clk 00:13:54]} {[%emt 00:00:03]} 10.
O-O {[%clk 00:13:32]} {[%emt 00:00:03]} Qe7 {[%clk 00:12:57]} {[%emt 00:01:02]}
11. Qe2 {[%clk 00:13:18]} {[%emt 00:00:18]} e5 {[%clk 00:12:41]} {[%emt
00:00:22]} 12. dxe5 {[%clk 00:12:52]} {[%emt 00:00:30]} Nxe5 {[%clk 00:12:40]}
{[%emt 00:00:04]} 13. Nxe5 {[%clk 00:12:48]} {[%emt 00:00:11]} Qxe5 {[%clk
00:12:03]} {[%emt 00:00:42]} 14. g3 {[%clk 00:12:37]} {[%emt 00:00:16]} Qe6
{[%clk 00:11:51]} {[%emt 00:00:18]} 15. cxd5 {[%clk 00:12:23]} {[%emt
00:00:19]} cxd5 {[%clk 00:11:44]} {[%emt 00:00:11]} 16. Nb5 {[%clk 00:12:19]}
{[%emt 00:00:09]} Be5 {[%clk 00:10:29]} {[%emt 00:01:21]} 17. Nd4 {[%clk
00:11:50]} {[%emt 00:00:33]} Qd7 {[%clk 00:10:04]} {[%emt 00:00:27]} 18. Bf5
{[%clk 00:11:44]} {[%emt 00:00:13]} Qe7 {[%clk 00:10:00]} {[%emt 00:00:10]} 19.
Rac1 {[%clk 00:10:40]} {[%emt 00:01:09]} g6 {[%clk 00:09:26]} {[%emt 00:00:40]}
20. Bd3 {[%clk 00:10:28]} {[%emt 00:00:16]} Rac8 {[%clk 00:09:24]} {[%emt
00:00:07]} 21. b4 {[%clk 00:09:58]} {[%emt 00:00:35]} Ne4 {[%clk 00:08:58]}
{[%emt 00:00:31]} 22. f4 {[%clk 00:08:21]} {[%emt 00:01:42]} Bh8 {[%clk
00:08:48]} {[%emt 00:00:15]} 23. Qg2 {[%clk 00:06:50]} {[%emt 00:01:35]} Nd6
{[%clk 00:08:37]} {[%emt 00:00:17]} 24. Rfe1 {[%clk 00:05:53]} {[%emt
00:01:02]} Nc4 {[%clk 00:08:03]} {[%emt 00:00:40]} 25. Qe2 {[%clk 00:04:46]}
{[%emt 00:01:12]} Nxb2 {[%clk 00:07:41]} {[%emt 00:00:28]} 26. Qxb2 {[%clk
00:04:48]} {[%emt 00:00:03]} Rxc1 {[%clk 00:07:41]} {[%emt 00:00:05]} 27. Qxc1
{[%clk 00:04:45]} {[%emt 00:00:08]} Rc8 {[%clk 00:07:40]} {[%emt 00:00:05]} 28.
Qd2 {[%clk 00:04:26]} {[%emt 00:00:24]} Bf6 {[%clk 00:06:48]} {[%emt 00:00:57]}
29. Rc1 {[%clk 00:04:21]} {[%emt 00:00:09]} Re8 {[%clk 00:06:18]} {[%emt
00:00:36]} 30. Kf2 {[%clk 00:04:24]} {[%emt 00:00:02]} Kg7 {[%clk 00:06:14]}
{[%emt 00:00:09]} 31. Nc6 {[%clk 00:03:27]} {[%emt 00:01:03]} Qd7 {[%clk
00:05:11]} {[%emt 00:01:08]} 32. b5 {[%clk 00:02:17]} {[%emt 00:01:14]} h5
{[%clk 00:04:39]} {[%emt 00:00:37]} 33. f5 {[%clk 00:01:41]} {[%emt 00:00:41]}
Bg5 {[%clk 00:04:14]} {[%emt 00:00:31]} 34. Re1 {[%clk 00:01:18]} {[%emt
00:00:28]} Kh7 {[%clk 00:03:49]} {[%emt 00:00:29]} 35. fxg6 {[%clk 00:01:19]}
{[%emt 00:00:05]} fxg6 {[%clk 00:03:53]} {[%emt 00:00:02]} 36. Qc2 {[%clk
00:01:18]} {[%emt 00:00:05]} Qf7+ {[%clk 00:03:49]} {[%emt 00:00:09]} 37. Kg2
{[%clk 00:01:18]} {[%emt 00:00:05]} Bxe3 {[%clk 00:03:35]} {[%emt 00:00:20]} 38.
Rf1 {[%clk 00:01:22]} Qg7 {[%clk 00:03:30]} {[%emt 00:00:08]} 39. Bxg6 {[%clk
00:00:52]} {[%emt 00:00:35]} Qxg6 {[%clk 00:03:25]} {[%emt 00:00:11]} 40. Rf7
{[%clk 00:00:56]} {[%emt 00:00:01]} Kh6 {[%clk 00:03:29]} {[%emt 00:00:02]} 41.
Rxb7 {[%clk 00:00:56]} {[%emt 00:00:05]} Qxc2+ {[%clk 00:03:32]} {[%emt
00:00:02]} 0-1